fUSD/lending_fUSD_20240403
["ID","MTS","AMOUNT","RATE_DAILY","PERIOD"]
[321421894,1712182252160,-1000.0,0.00041096,5]
[321421895,1712182252169,-1000.0,0.00041096,5]
[321421896,1712182252178,-1000.0,0.00041096,5]
[321421897,1712182252187,-1000.0,0.00041096,5]
[321421898,1712182252196,-1000.0,0.00041096,5]
[321421899,1712182252205,-1000.0,0.00041096,5]
[321421900,1712182252214,-1000.0,0.00041096,5]
[321421901,1712182252223,-1000.0,0.00041096,5]
[321421902,1712182252232,-1000.0,0.00041096,5]
[321421903,1712182252241,-1000.0,0.00041096,5]
[321421904,1712182252251,-1000.0,0.00041096,5]
[321421905,1712182252259,-1000.0,0.00041096,5]
[321421906,1712182252269,-1000.0,0.00041096,5]
[321421907,1712182252277,-1000.0,0.00041096,5]
[321421908,1712182252286,-1000.0,0.00041096,5]
[321421909,1712182252295,-1000.0,0.00041096,5]
[321421910,1712182252304,-1000.0,0.00041096,5]
[321421911,1712182252312,-1000.0,0.00041096,5]
[321421912,1712182252321,-1105.0,0.00041096,5]
[321421913,1712182252330,-1000.0,0.00041096,5]
[321421914,1712182252339,-1000.0,0.00041096,5]
[321421915,1712182252348,-1000.0,0.00041096,5]
[321421916,1712182252358,-571.0,0.00041096,5]
[321421917,1712182252367,-1000.0,0.00041096,5]
[321421918,1712182252375,-1000.0,0.00041096,5]
[321421919,1712182252385,-1000.0,0.00041096,5]
[321421920,1712182252396,-1000.0,0.00041096,5]
[321421921,1712182252406,-1000.0,0.00041096,5]
[321421922,1712182252415,-1000.0,0.00041096,5]
[321421923,1712182252424,-1000.0,0.00041096,5]
[321421924,1712182252433,-1000.0,0.00041096,5]
[321421925,1712182252442,-1000.0,0.00041096,5]
[321421926,1712182252451,-1000.0,0.00041096,5]
[321421927,1712182252460,-1000.0,0.00041096,5]
[321421928,1712182252470,-1000.0,0.00041096,5]
[321421929,1712182252479,-1000.0,0.00041096,5]
[321421930,1712182252488,-1000.0,0.00041096,5]
[321421931,1712182252499,-1000.0,0.00041096,5]
[321421932,1712182252508,-1000.0,0.00041096,5]
[321421933,1712182252517,-1000.0,0.00041096,5]
[321421934,1712182252526,-1000.0,0.00041096,5]
[321421935,1712182252535,-1000.0,0.00041096,5]
[321421936,1712182252545,-1000.0,0.00041096,5]
[321421937,1712182252554,-1000.0,0.00041096,5]
[321421938,1712182252563,-1000.0,0.00041096,5]
[321421939,1712182252573,-1000.0,0.00041096,5]
[321421940,1712182252582,-1000.0,0.00041096,5]
[321421941,1712182252593,-1000.0,0.00041096,5]
[321421942,1712182252602,-1000.0,0.00041096,5]
[321421943,1712182252611,-1000.0,0.00041096,5]
[321421944,1712182252620,-1000.0,0.00041096,5]
[321421945,1712182252630,-1000.0,0.00041096,5]
[321421946,1712182252640,-1000.0,0.00041096,5]
[321421947,1712182252649,-1000.0,0.00041096,5]
[321421948,1712182252658,-1000.0,0.00041096,5]
[321421949,1712182252668,-183.0,0.00041096,2]
[321421950,1712182252678,-1000.0,0.00041096,5]
[321421951,1712182252687,-1000.0,0.00041096,5]
[321421952,1712182252696,-1000.0,0.00041096,5]
[321421953,1712182252705,-1000.0,0.00041096,5]
[321421954,1712182252714,-1000.0,0.00041096,5]
[321421955,1712182252723,-1000.0,0.00041096,5]
[321421956,1712182252732,-1000.0,0.00041096,5]
[321421957,1712182252741,-1000.0,0.00041096,5]
[321421958,1712182252751,-1000.0,0.00041096,5]
[321421959,1712182252761,-1000.0,0.00041096,30]
[321421960,1712182252771,-150.0,0.000411,39]
[321421961,1712182252781,-3000.0,0.000411,2]
[321421962,1712182252790,-211.70038815,0.00041122,30]
[321421963,1712182252799,-509.54232732,0.00041169,30]
[321421964,1712182252808,-210.599516,0.00041269,30]
[321421965,1712182252818,-200.0,0.00041319,7]
[321421966,1712182252827,-509.54232732,0.00041354,30]
[321421967,1712182252837,-151.29625457,0.00041357,30]
[321421968,1712182252846,-602.12417404,0.00041383,30]
[321421969,1712182252856,-152.0,0.00041436,8]
[321421970,1712182252865,-1382.547825,0.0004144,7]
[321421971,1712182252874,-1014.44,0.00041515,2]
[321421972,1712182252883,-150.0,0.00041528,2]
[321421973,1712182252893,-50000.0,0.0004154,15]
[321421974,1712182252902,-50000.0,0.0004154,16]
[321421975,1712182252911,-50000.0,0.0004154,17]
[321421976,1712182252921,-50000.0,0.0004154,18]
[321421977,1712182252931,-50000.0,0.0004154,19]
[321421978,1712182252940,-50000.0,0.0004154,20]
[321421979,1712182252950,-34911.50524502,0.0004154,2]
[321421980,1712182252959,-6020.36300506,0.0004154,7]
[321421981,1712182252968,-8713.40982025,0.0004154,14]
[321421982,1712182252977,-841.16506851,0.0004154,2]
[321421983,1712182252987,-138050.15284922,0.0004154,2]
[321421984,1712182252996,-50250.22966909,0.0004154,10]
[321421985,1712182253005,-11110.0,0.0004154,2]
[321421986,1712182253014,-2391.03675158,0.0004154,2]
[321421987,1712182253023,-1572.75867537,0.0004154,2]
[321421988,1712182253033,-221.38993663,0.0004154,2]
[321421989,1712182253042,-373.55229766,0.0004154,2]
[321421990,1712182253051,-1476.53586266,0.0004154,2]
[321421991,1712182253061,-2487.32836811,0.0004154,10]
[321421992,1712182253070,-5004.0,0.0004154,7]
[321421993,1712182253080,-150.0,0.0004154,2]
[321421994,1712182253090,-150.0,0.0004154,2]
[321421995,1712182253102,-200.0,0.0004154,2]
[321421996,1712182253113,-338.15150351,0.0004154,2]
[321421997,1712182253123,-7159.53136901,0.0004154,2]
[321421998,1712182253133,-159.24259359,0.0004154,2]
[321421999,1712182253146,-844.58261289,0.0004154,2]
[321422000,1712182253156,-185.3802717,0.0004154,2]
[321422001,1712182253166,-478.39628654,0.0004154,2]
[321422002,1712182253176,-643.0,0.0004154,2]
[321422003,1712182253185,-942.37101421,0.0004154,2]
[321422004,1712182253195,-556.61570855,0.0004154,2]
[321422005,1712182253205,-169.6118067,0.0004154,2]
[321422006,1712182253215,-500.0,0.0004154,2]
[321422007,1712182253225,-550.0,0.0004154,2]
[321422008,1712182253234,-979.29993071,0.0004154,2]
[321422009,1712182253244,-499.999999,0.0004154,2]
[321422010,1712182253254,-500.0,0.0004154,2]
[321422011,1712182253264,-547.47525671,0.0004154,2]
[321422012,1712182253274,-150.0,0.0004154,2]
[321422013,1712182253284,-608.99474061,0.0004154,2]
[321422014,1712182253295,-208.81602519,0.0004154,2]
[321422015,1712182253305,-15928.58441287,0.0004154,7]
[321422016,1712182253316,-436.90124008,0.0004154,2]
[321422017,1712182253325,-563.30598829,0.0004154,2]
[321422018,1712182253334,-234.02174598,0.0004154,2]
[321422019,1712182253343,-524.03350757,0.0004154,2]
[321422020,1712182253353,-887.13764828,0.0004154,2]
[321422021,1712182253363,-468.17560273,0.0004154,2]
[321422022,1712182253372,-240.28754514,0.0004154,2]
[321422023,1712182253382,-384.75447235,0.0004154,2]
[321422024,1712182253399,-532.49601998,0.0004154,2]
[321422025,1712182253409,-526.61689502,0.0004154,5]
[321422026,1712182253419,-354.22389253,0.0004154,2]
[321422027,1712182253429,-592.14621856,0.0004154,2]
[321422028,1712182253439,-155.4904952,0.0004154,2]
[321422029,1712182253449,-337.35937306,0.0004154,2]
[321422030,1712182253459,-407.0,0.0004154,2]
[321422031,1712182253468,-214.07977406,0.0004154,2]
[321422032,1712182253478,-764.24894133,0.0004154,2]
[321422033,1712182253487,-13122.8878726,0.0004154,2]
[321422034,1712182253496,-3546.66884765,0.0004154,15]
[321422035,1712182253507,-179.36207103,0.0004154,7]
[321422036,1712182253517,-4000.0,0.0004154,3]
[321422037,1712182253526,-1490.73548226,0.0004154,7]
[321422038,1712182253536,-594.76918364,0.0004154,20]
[321422039,1712182253545,-5000.0,0.0004154,7]
[321422040,1712182253554,-5000.0,0.0004154,7]
[321422041,1712182253563,-5000.0,0.0004154,7]
[321422042,1712182253572,-5000.0,0.0004154,7]
[321422043,1712182253581,-5000.0,0.0004154,7]
[321422044,1712182253593,-5000.0,0.0004154,7]
[321422045,1712182253602,-5000.0,0.0004154,7]
[321422046,1712182253611,-5000.0,0.0004154,7]
[321422047,1712182253621,-5000.0,0.0004154,7]
[321422048,1712182253630,-7677.99808942,0.0004154,7]
[321422049,1712182253642,-175.44495337,0.0004154,2]
[321422050,1712182253801,-634.94232582,0.0004154,2]
[321422051,1712182253820,-4365.01325498,0.0004154,7]
[321422052,1712182253830,-4881.96419542,0.0004154,3]
[321422053,1712182253840,-14346.83831807,0.0004154,3]
[321422054,1712182253849,-3204.25108455,0.0004154,4]
[321422055,1712182253859,-316.68333862,0.0004154,2]
[321422056,1712182253868,-250.0,0.0004154,17]
[321422057,1712182253877,-7551.46990134,0.0004154,2]
[321422058,1712182253888,-1675.64295788,0.0004154,2]
[321422059,1712182253897,-162.41652671,0.0004154,30]
[321422060,1712182253905,-322.09926757,0.0004154,120]
[321422061,1712182253914,-18956.65677176,0.0004154,3]
[321422062,1712182253923,-3836.92855936,0.0004154,3]
[321422063,1712182253932,-7206.58535154,0.0004154,2]
[321422064,1712182253941,-3806.0,0.0004154,4]
[321422065,1712182253950,-93184.0,0.0004154,4]
[321422066,1712182253959,-1834.30976008,0.0004154,2]
[321422067,1712182253968,-166.99346795,0.00041552,30]
[321422068,1712182253977,-203.19613583,0.0004156,30]
[321422069,1712182253986,-291.67523411,0.0004156,30]
[321422070,1712182253995,-564.15,0.00041562,30]
[321422071,1712182254005,-291.67523411,0.00041574,30]
[321422072,1712182254015,-602.12417404,0.00041582,30]
[321422073,1712182254025,-211.70038815,0.00041631,30]
[321422074,1712182254035,-308.56,0.00041665,2]
[321422075,1712182254045,-250.0,0.00041684,15]
[321422076,1712182254054,-210.599516,0.00041778,30]
[321422077,1712182254064,-197.38677701,0.00041782,30]
[321422078,1712182254073,-298.39835,0.0004179,2]
[321422079,1712182254083,-1072.0,0.000418,31]
[321422080,1712182254094,-1014.44,0.0004183,2]
[321422081,1712182254104,-509.54232732,0.00041833,30]
[321422082,1712182254114,-2539.438624,0.00041845,15]
[321422083,1712182254124,-4891.0,0.00042,2]
[321422084,1712182254134,-2951.17,0.00042,2]
[321422085,1712182254146,-301.0,0.00042,10]
[321422086,1712182254156,-871.35900685,0.00042,7]
[321422087,1712182254165,-600.0,0.00042,43]
[321422088,1712182254175,-500.0,0.00042,2]
[321422089,1712182254184,-317.93881874,0.00042,2]
[321422090,1712182254194,-8767.71778012,0.00042,2]
[321422091,1712182254203,-564.15,0.00042,30]
[321422092,1712182254213,-1303.37965665,0.0004201,2]
[321422093,1712182254223,-200.0,0.000421,50]
[321422094,1712182254232,-602.12417404,0.00042109,30]
[321422095,1712182254242,-388.42808272,0.0004213,30]
[321422096,1712182254252,-308.56,0.0004213,2]
[321422097,1712182254261,-388.42808272,0.00042133,30]
[321422098,1712182254270,-388.42808272,0.00042184,30]
[321422099,1712182254282,-152.0,0.00042231,9]
[321422100,1712182254291,-155.2251499,0.00042265,30]
[321422101,1712182254303,-155.0,0.00042267,30]
[321422102,1712182254313,-210.599516,0.00042288,30]
[321422103,1712182254323,-155.2251499,0.0004229,30]
[321422104,1712182254332,-1072.0,0.000423,32]
[321422105,1712182254342,-150.0,0.00042394,2]
[321422106,1712182254351,-1029.0,0.00042399,30]
[321422107,1712182254360,-602.12417404,0.00042407,30]
[321422108,1712182254370,-197.38677701,0.00042431,30]
[321422109,1712182254381,-602.12417404,0.00042447,30]
[321422110,1712182254390,-203.19613583,0.00042451,30]
[321422111,1712182254401,-564.15,0.00042466,30]
[321422112,1712182254410,-150.0,0.00042502,120]
[321422113,1712182254420,-203.19613583,0.00042603,30]
[321422114,1712182254431,-159.96854777,0.00042634,30]
[321422115,1712182254441,-150.0,0.00042656,120]
[321422116,1712182254451,-155.2251499,0.00042718,30]
[321422117,1712182254460,-500.0,0.0004278,30]
[321422118,1712182254469,-210.599516,0.00042797,30]
[321422119,1712182254479,-1072.0,0.000428,32]
[321422120,1712182254488,-602.12417404,0.00042821,30]
[321422121,1712182254498,-1014.44,0.0004293,2]
[321422122,1712182254507,-564.15,0.00042932,30]
[321422123,1712182254517,-153.63115965,0.00042945,30]
[321422124,1712182254526,-150.0,0.00042974,120]
[321422125,1712182254536,-721.41904155,0.00043,4]
[321422126,1712182254545,-600.0,0.00043,44]
[321422127,1712182254555,-197.38677701,0.00043009,30]
[321422128,1712182254564,-211.70038815,0.00043013,30]
[321422129,1712182254573,-903.84354822,0.0004302,2]
[321422130,1712182254583,-152.0,0.00043026,10]
[321422131,1712182254595,-157.33985921,0.00043135,30]
[321422132,1712182254604,-150.0,0.0004315,120]
[321422133,1712182254613,-203.19613583,0.00043164,30]
[321422134,1712182254623,-308.56,0.0004323,2]
[321422135,1712182254633,-152.23387178,0.00043239,30]
[321422136,1712182254643,-1014.44,0.00043245,2]
[321422137,1712182254652,-150.0,0.00043259,2]
[321422138,1712182254661,-197.38677701,0.00043277,30]
[321422139,1712182254671,-155.2251499,0.00043289,30]
[321422140,1712182254681,-1072.0,0.000433,33]
[321422141,1712182254690,-1052.25,0.00043313,2]
[321422142,1712182254699,-500.0,0.00043328,30]
[321422143,1712182254708,-155.78714103,0.00043361,30]
[321422144,1712182254718,-564.15,0.0004337,30]
[321422145,1712182254727,-509.54232732,0.00043383,30]
[321422146,1712182254736,-388.42808272,0.00043402,30]
[321422147,1712182254745,-1117.8,0.00043507,15]
[321422148,1712182254754,-3003.65,0.00043562,2]
[321422149,1712182254763,-157.33985921,0.00043604,30]
[321422150,1712182254772,-151.0,0.00043622,2]
[321422151,1712182254781,-509.54232732,0.00043695,30]
[321422152,1712182254790,-308.56,0.00043695,2]
[321422153,1712182254800,-150.0,0.00043706,120]
[321422154,1712182254809,-153.63115965,0.00043728,30]
[321422155,1712182254818,-150.0,0.0004378,53]
[321422156,1712182254828,-3000.0,0.000438,2]
[321422157,1712182254837,-1072.0,0.000438,33]
[321422158,1712182254847,-152.0,0.00043821,11]
[321422159,1712182254856,-163.47237622,0.00043832,30]
[321422160,1712182254865,-564.15,0.00043836,30]
[321422161,1712182254874,-250.0,0.00043836,2]
[321422162,1712182254883,-406.3,0.00043836,2]
[321422163,1712182254894,-500.0,0.00043876,30]
[321422164,1712182254903,-150.0,0.00043995,120]
[321422165,1712182254912,-372.68875384,0.00043997,2]
[321422166,1712182254921,-997302.32089353,0.00044,2]
[321422167,1712182255414,-5745387.74486379,0.00044,2]
[321422168,1712182255423,-600.0,0.00044,45]
[321422169,1712182255433,-691.0,0.00044,4]
[321422170,1712182255442,-500.0,0.00044,2]
[321422171,1712182255452,-12625.0,0.00044,2]
[321422172,1712182255462,-16002.88317071,0.00044,2]
[321422173,1712182255471,-1175.80984216,0.00044,30]
[321422174,1712182255480,-2929.285009,0.00044,44]
[321422175,1712182255490,-456.82,0.00044048,120]
[321422176,1712182255499,-203.19613583,0.00044084,30]
[321422177,1712182255509,-211.70038815,0.00044093,30]
[321422178,1712182255518,-200.0,0.00044114,30]
[321422179,1712182255527,-320.0,0.00044114,30]
[321422180,1712182255536,-400.0,0.00044114,30]
[321422181,1712182255546,-200.781815,0.00044114,30]
[321422182,1712182255555,-183.41559,0.00044114,30]
[321422183,1712182255566,-191.585948,0.00044114,30]
[321422184,1712182255576,-173.130722,0.00044114,30]
[321422185,1712182255770,-2381.41475,0.00044114,30]
[321422186,1712182255789,-208.268147,0.00044114,30]
[321422187,1712182255798,-150.0,0.00044124,2]
[321422188,1712182255807,-1100.0,0.0004415,30]
[321422189,1712182255816,-1300.0,0.0004415,30]
[321422190,1712182255826,-500.0,0.0004415,30]
[321422191,1712182255835,-500.0,0.0004415,30]
[321422192,1712182255844,-388.42808272,0.00044199,30]
[321422193,1712182255854,-153.63115965,0.00044247,30]
[321422194,1712182255863,-155.2251499,0.00044256,30]
[321422195,1712182255872,-163.47237622,0.00044275,30]
[321422196,1712182255881,-1072.0,0.000443,34]
[321422197,1712182255894,-564.15,0.00044301,30]
[321422198,1712182255903,-306.2,0.00044306,2]
[321422199,1712182255912,-153.63115965,0.0004432,30]
[321422200,1712182255922,-1014.44,0.00044345,2]
[321422201,1712182255931,-302.0,0.00044355,4]
[321422202,1712182255939,-153.63115965,0.00044372,30]
[321422203,1712182255949,-159.96854777,0.00044413,30]
[321422204,1712182255958,-500.0,0.00044424,30]
[321422205,1712182255968,-1100.0,0.00044424,30]
[321422206,1712182255977,-1300.0,0.00044424,30]
[321422207,1712182255986,-153.63115965,0.00044427,30]
[321422208,1712182255995,-211.70038815,0.00044428,30]
[321422209,1712182256005,-9999.99999983,0.0004444,3]
[321422210,1712182256014,-153.63115965,0.00044443,30]
[321422211,1712182256022,-291.67523411,0.00044474,30]
[321422212,1712182256031,-197.38677701,0.00044535,30]
[321422213,1712182256040,-153.25551138,0.00044569,30]
[321422214,1712182256049,-509.54232732,0.00044576,30]
[321422215,1712182256059,-152.0,0.00044616,12]
[321422216,1712182256067,-1029.0,0.0004463,30]
[321422217,1712182256077,-1014.44,0.0004466,2]
[321422218,1712182256091,-320.0,0.00044666,30]
[321422219,1712182256100,-400.0,0.00044666,30]
[321422220,1712182256109,-2381.41475,0.00044666,30]
[321422221,1712182256119,-208.268147,0.00044666,30]
[321422222,1712182256130,-500.0,0.00044698,30]
[321422223,1712182256142,-500.0,0.00044698,30]
[321422224,1712182256151,-155.2251499,0.00044738,30]
[321422225,1712182256163,-564.15,0.0004474,30]
[321422226,1712182256173,-602.12417404,0.00044771,30]
[321422227,1712182256182,-388.42808272,0.00044774,30]
[321422228,1712182256193,-308.56,0.00044795,2]
[321422229,1712182256202,-1072.0,0.000448,34]
[321422230,1712182256211,-150.0,0.00044835,120]
[321422231,1712182256221,-211.70038815,0.00044836,30]
[321422232,1712182256232,-155.78714103,0.00044841,30]
[321422233,1712182256241,-388.42808272,0.00044851,30]
[321422234,1712182256251,-388.42808272,0.0004488,30]
[321422235,1712182256260,-157.33985921,0.00044897,30]
[321422236,1712182256270,-1032.32709925,0.000449,4]
[321422237,1712182256280,-6543.279,0.000449,60]
[321422238,1712182256291,-291.67523411,0.00044921,30]
[321422239,1712182256301,-500.0,0.00044972,30]
[321422240,1712182256312,-1100.0,0.00044972,30]
[321422241,1712182256323,-1300.0,0.00044972,30]
[321422242,1712182256332,-5169.63145729,0.0004498,2]
[321422243,1712182256342,-291.67523411,0.00044982,30]
[321422244,1712182256352,-5000.0,0.00044986,4]
[321422245,1712182256363,-150.0,0.00044989,2]
[321422246,1712182256374,-200000.0,0.00045,25]
[321422247,1712182256384,-185.89094411,0.00045,14]
[321422248,1712182256397,-328.38424403,0.00045,4]
[321422249,1712182256407,-890.0,0.00045,15]
[321422250,1712182256416,-629.30241253,0.00045,4]
[321422251,1712182256425,-23949.0,0.00045,2]
[321422252,1712182256436,-500.0,0.00045,10]
[321422253,1712182256447,-301.486844,0.00045,2]
[321422254,1712182256456,-704.08499974,0.00045,30]
[321422255,1712182256468,-600.0,0.00045,46]
[321422256,1712182256479,-150.0,0.00045,85]
[321422257,1712182256491,-723.44747167,0.00045,30]
[321422258,1712182256502,-70858.73424473,0.00045,2]
[321422259,1712182256512,-130693.08527069,0.00045,2]
[321422260,1712182256521,-1215.52391343,0.00045,5]
[321422261,1712182256531,-150.999999,0.00045,120]
[321422262,1712182256540,-153.63115965,0.00045015,30]
[321422263,1712182256550,-291.67523411,0.00045037,30]
[321422264,1712182256559,-291.67523411,0.00045057,30]
[321422265,1712182256569,-388.42808272,0.00045065,30]
[321422266,1712182256581,-156017.16586626,0.0004509,2]
[321422267,1712182256594,-14954.56538382,0.0004509,2]
[321422268,1712182256604,-604.0,0.00045101,7]
[321422269,1712182256615,-159.95030803,0.00045107,30]
[321422270,1712182256625,-564.15,0.00045205,30]
[321422271,1712182256636,-151.87,0.00045205,2]
[321422272,1712182256647,-320.0,0.00045217,30]
[321422273,1712182256657,-400.0,0.00045217,30]
[321422274,1712182256668,-2381.41475,0.00045217,30]
[321422275,1712182256678,-208.268147,0.00045217,30]
[321422276,1712182256687,-602.12417404,0.00045225,30]
[321422277,1712182256697,-500.0,0.00045246,30]
[321422278,1712182256706,-500.0,0.00045246,30]
[321422279,1712182256716,-211.0,0.0004526,30]
[321422280,1712182256726,-308.56,0.0004526,2]
[321422281,1712182256736,-1072.0,0.000453,35]
[321422282,1712182256745,-150.0,0.00045357,120]
[321422283,1712182256754,-153.63115965,0.00045371,30]
[321422284,1712182256764,-509.54232732,0.00045392,30]
[321422285,1712182256773,-203.19613583,0.00045392,30]
[321422286,1712182256782,-152.0,0.00045411,13]
[321422287,1712182256791,-150.0,0.000455,8]
[321422288,1712182256800,-1100.0,0.0004552,30]
[321422289,1712182256809,-1300.0,0.0004552,30]
[321422290,1712182256818,-291.67523411,0.00045573,30]
[321422291,1712182256827,-1052.25,0.00045577,2]
[321422292,1712182256836,-564.15,0.00045671,30]
[321422293,1712182256846,-310.54,0.000457,2]
[321422294,1712182256855,-159.96854777,0.00045727,30]
[321422295,1712182256864,-388.42808272,0.0004575,30]
[321422296,1712182256873,-1014.44,0.0004576,2]
[321422297,1712182256883,-388.42808272,0.00045766,30]
[321422298,1712182256894,-320.0,0.00045769,30]
[321422299,1712182256903,-400.0,0.00045769,30]
[321422300,1712182256912,-2381.41475,0.00045769,30]
[321422301,1712182256921,-208.268147,0.00045769,30]
[321422302,1712182256931,-500.0,0.00045794,30]
[321422303,1712182256940,-500.0,0.00045794,30]
[321422304,1712182256950,-1072.0,0.000458,35]
[321422305,1712182256959,-151.0,0.00045819,7]
[321422306,1712182256968,-150.0,0.00045854,2]
[321422307,1712182256978,-155.2251499,0.00045981,30]
[321422308,1712182256987,-150.0,0.00045997,120]
[321422309,1712182256996,-200000.0,0.00046,26]
[321422310,1712182257006,-1000.0,0.00046,10]
[321422311,1712182257015,-1612.05385673,0.00046,4]
[321422312,1712182257025,-10000.0,0.00046,5]
[321422313,1712182257034,-10000.0,0.00046,5]
[321422314,1712182257043,-9000.0,0.00046,15]
[321422315,1712182257052,-600.0,0.00046,47]
[321422316,1712182257061,-500.0,0.00046,2]
[321422317,1712182257071,-309.92186674,0.00046,3]
[321422318,1712182257081,-150.0,0.00046,96]
[321422319,1712182257091,-150.0,0.00046,8]
[321422320,1712182257100,-1100.0,0.00046068,30]
[321422321,1712182257110,-1300.0,0.00046068,30]
[321422322,1712182257120,-1014.44,0.00046075,2]
[321422323,1712182257129,-564.15,0.0004611,30]
[321422324,1712182257139,-150.0,0.00046184,120]
[321422325,1712182257149,-150.0,0.00046195,120]
[321422326,1712182257159,-152.0,0.00046206,14]
[321422327,1712182257168,-963.59,0.00046207,2]
[321422328,1712182257177,-203.19613583,0.0004622,30]
[321422329,1712182257187,-509.54232732,0.00046233,30]
[321422330,1712182257197,-1208.0,0.00046242,30]
[321422331,1712182257206,-1117.8,0.00046247,15]
[321422332,1712182257216,-153.54975412,0.00046269,30]
[321422333,1712182257225,-203.19613583,0.00046276,30]
[321422334,1712182257235,-158.95167049,0.0004628,30]
[321422335,1712182257243,-1072.0,0.000463,36]
[321422336,1712182257253,-200.0,0.0004632,30]
[321422337,1712182257262,-320.0,0.0004632,30]
[321422338,1712182257271,-400.0,0.0004632,30]
[321422339,1712182257280,-2381.41475,0.0004632,30]
[321422340,1712182257290,-208.268147,0.0004632,30]
[321422341,1712182257299,-500.0,0.00046342,30]
[321422342,1712182257309,-507.80598945,0.00046342,30]
[321422343,1712182257318,-151.29625457,0.00046358,30]
[321422344,1712182257327,-308.56,0.0004636,2]
[321422345,1712182257337,-388.42808272,0.00046407,30]
[321422346,1712182257346,-211.0,0.0004641,30]
[321422347,1712182257355,-602.12417404,0.0004641,30]
[321422348,1712182257364,-388.42808272,0.00046427,30]
[321422349,1712182257373,-7916.67629144,0.0004644,39]
[321422350,1712182257382,-509.54232732,0.00046466,30]
[321422351,1712182257392,-150.0,0.0004649,58]
[321422352,1712182257401,-150.0,0.000465,8]
[321422353,1712182257411,-291.67523411,0.00046536,30]
[321422354,1712182257420,-157.33985921,0.00046566,30]
[321422355,1712182257429,-153.54975412,0.00046575,30]
[321422356,1712182257438,-564.15,0.00046575,30]
[321422357,1712182257447,-388.42808272,0.00046582,30]
[321422358,1712182257456,-3000.0,0.000466,2]
[321422359,1712182257466,-211.70038815,0.00046604,30]
[321422360,1712182257475,-1100.0,0.00046616,30]
[321422361,1712182257485,-1300.0,0.00046616,30]
[321422362,1712182257494,-509.54232732,0.0004671,30]
[321422363,1712182257503,-150.0,0.0004672,2]
[321422364,1712182257513,-602.12417404,0.00046749,30]
[321422365,1712182257522,-153.63115965,0.00046755,30]
[321422366,1712182257531,-1072.0,0.000468,37]
[321422367,1712182257540,-509.54232732,0.00046814,30]
[321422368,1712182257550,-308.56,0.00046825,2]
[321422369,1712182257559,-34843.792233,0.00046849,7]
[321422370,1712182257568,-624.75666764,0.00046849,7]
[321422371,1712182257577,-500.0,0.0004689,30]
[321422372,1712182257590,-1029.0,0.00046979,30]
[321422373,1712182257603,-200000.0,0.00047,27]
[321422374,1712182257612,-1000.0,0.00047,10]
[321422375,1712182257622,-1000.0,0.00047,13]
[321422376,1712182257632,-600.0,0.00047,48]
[321422377,1712182257643,-200.0,0.00047,108]
[321422378,1712182257652,-1500.0,0.00047,120]
[321422379,1712182257665,-150.0,0.00047,9]
[321422380,1712182257675,-152.0,0.00047001,15]
[321422381,1712182257685,-564.15,0.00047041,30]
[321422382,1712182257694,-150.0,0.00047057,120]
[321422383,1712182257703,-203.19613583,0.00047086,30]
[321422384,1712182257712,-181.71250369,0.00047127,30]
[321422385,1712182257721,-1100.0,0.00047164,30]
[321422386,1712182257731,-1300.0,0.00047164,30]
[321422387,1712182257739,-1014.44,0.00047175,2]
[321422388,1712182257749,-8507.35906437,0.00047176,23]
[321422389,1712182257758,-5000.0,0.00047176,24]
[321422390,1712182257768,-5000.0,0.00047176,25]
[321422391,1712182257777,-5000.0,0.00047176,20]
[321422392,1712182257786,-176.5801345,0.00047183,30]
[321422393,1712182257795,-602.12417404,0.00047196,30]